Cogmind - Beta 14 @@@ ROGUE MODE // 2025.04.30 @ 19:11:05 Player: celerysam Result: Destroyed by ON-6FK(R) with Subdweller Beam Cannon Performance ------------- Evolutions (0) 0 Regions Visited (2) 400 Robots Destroyed (12) 60 Value Destroyed (302) 302 Prototype IDs (11) 220 Alien Tech Used (0) 0 Bonus (0) 0 TOTAL SCORE: 982 Bonus ------- None Cogmind --------- Core Integrity 0/250 Matter 20/300 Energy 96/100 System Corruption 0% Temperature Cool (12) Movement Walking (130) Location -10/Subcaves Parts ------- > --- POWER (1) -------- (None) > --- PROPULSION (2) --- Cargo Legs > --- UTILITY (2+1) ---- Improved Heat Sink Large Storage Unit Signal Interpreter (+) > --- WEAPON (2) ------- Particle Gun Autogun > --- INVENTORY (15) --- Ion Engine Ion Engine Light Nuclear Core Light Nuclear Core Light Treads Improved Treads Improved Treads Improved Treads Improved Heat Sink Autogun Subdweller Shrapnel Launcher Peak State ------------ > --- POWER ------------ Ion Engine > --- PROPULSION ------- Cargo Legs > --- UTILITY ---------- Improved Heat Sink Large Storage Unit Signal Interpreter ECM Suite > --- WEAPON ----------- Particle Gun Autogun > --- INVENTORY -------- Ion Engine Ion Engine Light Nuclear Core Light Nuclear Core Light Treads Improved Treads Improved Treads Improved Treads Improved Heat Sink Autogun Rocket Launcher Subdweller Shrapnel Launcher [Rating: 29] Favorites ----------- Power Ion Engine Engine Ion Engine Propulsion Light Treads Treads Light Treads Leg Aluminum Leg Utility Large Storage Unit Device Structural Scanner Storage Large Storage Unit Processor Signal Interpreter Weapon Light Assault Rifle Energy Gun Particle Gun Ballistic Gun Light Assault Rifle Launcher Rocket Launcher Build | -11 -10 -10 ------- Run | Yrd Mat Sub Slots Evolved . | . . . Power . | . . . Propulsion . | . . . Utility . | . . . Weapon . | . . . Parts Attached 31 | 6 11 14 Power 3 | 1 2 . Engine 3 | 1 2 . Core . | . . . Reactor . | . . . Propulsion 8 | 2 3 3 Treads 5 | . 3 2 Leg 3 | 2 . 1 Wheel . | . . . Hover . | . . . Flight . | . . . Utility 7 | 1 3 3 Device 3 | . 1 2 Storage 2 | 1 1 . Processor 2 | . 1 1 Hackware . | . . . Protection . | . . . Artifact . | . . . Weapon 13 | 2 3 8 Energy Gun 4 | . 2 2 Energy Cannon . | . . . Ballistic Gun 6 | 2 1 3 Ballistic Cannon . | . . . Launcher 3 | . . 3 Special Weapon . | . . . Impact Weapon . | . . . Slashing Weapon . | . . . Piercing Weapon . | . . . Special Melee Weapon . | . . . Unidentified Prototypes . | . . . Parts Lost 5 | . 1 4 Power 1 | . . 1 Propulsion 1 | . 1 . Utility 2 | . . 2 Weapon 1 | . . 1 Highest Loss Streak 4 | . 1 4 To Critical Strikes . | . . . Average Slot Usage (%) 97 | . 98 95 Engine 13 | . 14 12 Treads 21 | . 22 17 Leg 4 | . 4 4 Device 12 | . 10 16 Storage 13 | . 14 12 Processor 2 | . 1 4 Energy Gun 7 | . 6 10 Ballistic Gun 18 | . 21 13 Peak Build Rating 29 | 6 12 29 Average Rating 11 | 3 9 18 On Entrance 6 | . 6 12 Naked Turns . | . . . Heaviest Build 37 | 10 32 37 Greatest Support 55 | 20 40 55 Greatest Overweight (x) 1 | . 1 . Average Overweight (x) . | . . . Largest Inventory Capacity 15 | 8 15 15 Average Capacity 13 | 6 13 15 Most Carried 15 | 8 15 15 Average Carried 12 | 5 11 14 Final Capacity 15 | 8 15 15 Final Carried 15 | 6 15 11 Class Distribution -------------------- 90% | Mutant 9% | Infiltrator-Mutant Dominant Class ---------------- Mutant | -10/Materials Mutant | -10/Subcaves Resources | -11 -10 -10 ----------- Run | Yrd Mat Sub Matter Collected 476 | 232 221 23 Remotely . | . . . Salvage Created 388 | . 388 . Parts 31 | . 31 . Haulers Intercepted 1 | . 1 . Recyclers Shooed . | . . . Parts Field Recycled . | . . . Retrieved Matter . | . . . Parts Self-Destructed . | . . . Prevented . | . . . Kills | -11 -10 -10 ------- Run | Yrd Mat Sub Combat Hostiles Destroyed 9 | . 9 . Guns 9 | . 9 . Classes Destroyed 5 | . 5 . Worker 1 | . 1 . Hauler 1 | . 1 . Watcher 1 | . 1 . Swarmer 3 | . 3 . Grunt 6 | . 6 . Best Kill Streak 3 | . 3 . Combat Bots Only 3 | . 3 . Max Kills in Single Turn 2 | . 2 . Gunslinging 1 | . 1 . Exploded . | . . . Melee . | . . . Uniques/NPCs Destroyed . | . . . Combat | -11 -10 -10 -------- Run | Yrd Mat Sub Hostile Shots Fired 92 | . 71 21 Missed 20 | . 14 6 Damage Taken 1132 | . 705 427 Core 266 | . 127 139 Absorbed by Shields . | . . . Core Remaining (%) 100 | 100 . . Volleys Fired 82 | . 51 31 Largest 2 | . 2 2 Hottest 130 | . 130 98 Shots Fired 158 | . 102 56 Gun 152 | . 102 50 Cannon . | . . . Launcher 6 | . . 6 Special . | . . . Kinetic 116 | . 88 28 Thermal 37 | . 14 23 Explosive 5 | . . 5 Electromagnetic . | . . . Robot Hit Streak 12 | . 12 6 Robot Miss Streak 3 | . 3 2 Penetration Max . | . . . Secondary Targets 1 | . 1 . Max Gunslinging Chain 1 | . 1 . Shots Hit Robots 80 | . 70 10 Core Hits 32 | . 29 3 Critical Kills . | . . . Critical Parts Destroyed 1 | . 1 . Critical Strikes 1 | . 1 . Destroy 1 | . 1 . Melee Attacks . | . . . Impact . | . . . Slashing . | . . . Piercing . | . . . Sneak Attacks . | . . . Combat Hostiles . | . . . Follow-up Attacks . | . . . Damage Inflicted 985 | . 654 331 Guns 747 | . 628 119 Cannons . | . . . Explosions 238 | . 26 212 Melee . | . . . Ramming . | . . . Kinetic 540 | . 524 16 Thermal 207 | . 104 103 Explosive 212 | . . 212 Electromagnetic 26 | . 26 . Impact . | . . . Slashing . | . . . Piercing . | . . . Highest Corruption . | . . . Average Corruption . | . . . Corruption Purged . | . . . Corruption Blocked . | . . . Overload Shots . | . . . Overflow Damage . | . . . Projectiles . | . . . Explosions . | . . . Melee . | . . . Knockbacks . | . . . Impact . | . . . Kinetic . | . . . Secondary . | . . . Self-Inflicted Damage 54 | . . 54 Shots 2 | . . 2 Rammed . | . . . Targets Rammed . | . . . Kicked . | . . . Crushed . | . . . Highest Temperature 376 | . 376 262 Average Temperature 66 | . 77 34 Received Heat Transfer 728 | . 384 344 Effects 3 | . 3 . Shutdowns 1 | . 1 . Interference 2 | . 2 . Siege Activations . | . . . Robots Corrupted . | . . . Combat Hostiles . | . . . Parts Fried . | . . . Impact Corruptions . | . . . Robots Melted . | . . . Combat Hostiles . | . . . Parts Melted . | . . . Heat Transferred 518 | . 259 259 Parts Sabotaged . | . . . Parts Stolen . | . . . Parts Stripped . | . . . Power Chain Reactions 1 | . 1 . Alert | -11 -10 -10 ------- Run | Yrd Mat Sub Peak Influence 201 | . 201 . Initial . | . . . Average 59 | . 62 . Maximum Alert Level 1 | . 1 . Low Security (%) 98 | 100 98 . Level 1 1 | . 1 . Level 2 . | . . . Level 3 . | . . . Level 4 . | . . . Level 5 . | . . . High Security . | . . . Max Security . | . . . Squads Dispatched 1 | . 1 . Investigation . | . . . Extermination . | . . . Reinforcement 1 | . 1 . Assault . | . . . Garrison . | . . . Intercept . | . . . Searches Triggered . | . . . Construction Impeded . | . . . Haulers Reinforced . | . . . Active Scanning Responses . | . . . Cargo Convoy Interrupts . | . . . Stealth | -11 -10 -10 --------- Run | Yrd Mat Sub Distress Signals . | . . . Communications Jammed . | . . . Distress Signals . | . . . Times Spotted 19 | . 17 2 Peak Tracking Total 3 | . 3 2 Tactical Retreats 2 | . 2 . Traps | -11 -10 -10 ------- Run | Yrd Mat Sub Traps Triggered . | . . . Indirectly . | . . . Trap Hack Attempts . | . . . Triggered . | . . . Disarmed . | . . . Reprogrammed . | . . . Reused . | . . . Traps Extracted . | . . . Installed 1 | . . 1 Triggered . | . . . Machines | -11 -10 -10 ---------- Run | Yrd Mat Sub Machines Disabled 3 | . 1 2 Max in Single Turn 2 | . 1 2 Machines Repaired . | . . . Machines Dismantled . | . . . Machines Sabotaged . | . . . Overloaded Fab Kills . | . . . Hacking | -11 -10 -10 --------- Run | Yrd Mat Sub Machines Accessed 3 | . 2 1 Terminals 2 | . 2 . Fabricators . | . . . Repair Stations . | . . . Recycling Units . | . . . Scanalyzers . | . . . Garrison Access . | . . . Total Hacks 6 | . 5 1 Successful 6 | . 5 1 Failed . | . . . Catastrophic . | . . . Database Lockouts . | . . . Manual 3 | . 2 1 Terminals 5 | . 5 . Fabricators . | . . . Repair Stations . | . . . Recycling Units . | . . . Scanalyzers . | . . . Garrison Access . | . . . Terminal Hacks 4 | . 3 1 Alert Level 2 | . 2 . Hauler Manifests 1 | . 1 . Derelict Proto ID Bank 1 | . . 1 Fabricator Hacks . | . . . Repair Station Hacks . | . . . Recycling Unit Hacks . | . . . Scanalyzer . | . . . Garrison Access Hacks . | . . . Unauthorized Hacks 2 | . 2 . Terminals 2 | . 2 . Botnet 2 | . 2 . Fabricators . | . . . Repair Stations . | . . . Recycling Units . | . . . Scanalyzers . | . . . Garrison Access . | . . . Data Cores Recovered . | . . . Used . | . . . Hacking Detections 1 | . 1 . Full Trace Events . | . . . Feedback Events . | . . . Feedback Blocked . | . . . Robot Schematics Acquired . | . . . Robots Built . | . . . Authchips . | . . . Time . | . . . Total Robot Build Rating . | . . . Part Schematics Acquired . | . . . Parts Built . | . . . Authchips . | . . . Time . | . . . Total Part Build Rating . | . . . Parts Repaired . | . . . Time . | . . . Parts Recycled . | . . . Recycled Matter . | . . . Retrieved Matter . | . . . Retrieved Components . | . . . Parts Scanalyzed . | . . . Part Schematics Acquired . | . . . Parts Damaged . | . . . Bothacking | -11 -10 -10 ------------ Run | Yrd Mat Sub Used RIF Installer . | . . . Robots Hacked . | . . . Non-combat . | . . . Combat . | . . . Robot Hacks Applied . | . . . Relay Couplers Released . | . . . Fabnet Peak Effective % . | . . . Robots Rewired . | . . . Allies Hacked . | . . . Hacks Repelled . | . . . Allies | -11 -10 -10 -------- Run | Yrd Mat Sub Total Allies . | . . . Largest Group . | . . . Highest-Rated Group . | . . . Highest-Rated Ally . | . . . Total Orders . | . . . Ally Attacks . | . . . Total Damage . | . . . Kills . | . . . Allies Corrupted . | . . . Allies Melted . | . . . Intel | -11 -10 -10 ------- Run | Yrd Mat Sub Robot Analysis Total . | . . . Derelict Logs Recovered . | . . . Drone Launches . | . . . Drone Recoveries . | . . . Exploration | -11 -10 -10 ------------- Run | Yrd Mat Sub Turns Passed 1601 | 49 1077 475 Spaces Moved 863 | 33 579 251 Core 9 | 9 . . Treads 591 | . 447 144 Legs 263 | 24 132 107 Wheels . | . . . Hover . | . . . Flight . | . . . Fastest Speed 50 | 50 120 130 Average Speed 148 | 100 151 147 Slowest Speed 190 | 120 190 160 Overloaded Moves . | . . . Propulsion Burnouts . | . . . Robots Hopped . | . . . Cave-ins Triggered . | . . . Exploration Rate (%) 31 | 5 71 17 Regions Visited 2 Branch Regions 1 Pre-discovered Areas . | . . . Known Exits Taken . | . . . Unknown Exits Taken 2 | 1 1 . Scrap Searched 2 | . . 2 Spaces Dug 15 | . . 15 Terrain Destroyed 34 | . . 34 Melee . | . . . Projectile . | . . . AOE 34 | . . 34 Terrain Rammed . | . . . Walls Destroyed . | . . . Machines Disabled . | . . . Actions | -11 -10 -10 --------- Run | Yrd Mat Sub Total 1056 | 46 706 304 Wait 22 | . 22 . Move 861 | 32 578 251 Hop . | . . . Pick Up 36 | 8 26 2 Fast Attach 8 | 4 2 2 Attach 8 | 2 2 4 Detach . | . . . Swap 15 | . 7 8 Drop 23 | . 18 5 Fire 82 | . 51 31 Melee . | . . . Ram . | . . . Kick . | . . . Crush . | . . . Escape Stasis . | . . . Rewire . | . . . Trap 1 | . . 1 Miscellaneous . | . . . Route ------- -11/Scrapyard -10/Materials (discovered 4 exits: [*Mat x2] / [*Min] / *Sub) -10/Subcaves History --------- Turn | Location | Event 12 | -11/Scrapyard | Discovered new exit (range 16) 50 | -11/Scrapyard | Entered Materials 214 | -10/Materials | Discovered new exit (range 16) 309 | -10/Materials | Build established: Mutant 479 | -10/Materials | Discovered new exit (range 16) 830 | -10/Materials | Core integrity fell below 50% 913 | -10/Materials | Discovered new exit (range 10) 1115 | -10/Materials | Discovered new exit (range 8) 1127 | -10/Materials | Entered Subcaves 1174 | -10/Subcaves | Shifting Twisted Machinery released Sub. Monowheel 1197 | -10/Subcaves | Shifting Twisted Machinery released Shrapnel Trap 1357 | -10/Subcaves | Visited 4L-MR0's lab 1425 | -10/Subcaves | Found Cargo Legs 1426 | -10/Subcaves | Attached Cargo Legs, gained temporary slots: Utility x2 1488 | -10/Subcaves | A swath of the cavern ceiling suddenly collapsed 1572 | -10/Subcaves | Ambushed by Subdwellers from Twisted Machinery 1587 | -10/Subcaves | Core integrity fell below 20% 1602 | -10/Subcaves | Destroyed by ON-6FK(R) with Subdweller Beam Cannon Last Messages --------------- 01409_ Machine disabled. 01424_ Dropped Imp. Treads. 01425_ Acquired Cargo Legs. 01426_ Core temporarily expanded with Utility slot. 01430_ Dropped Sub. Monowheel. 01432_ Acquired Imp. Treads. 01434_ Subatomizers dissect the Imp. Treads. 01451_ Acquired 3 matter. A swath of the cavern ceiling suddenly collapses. 01572_ XH-UTX(R) emerges from the Twisted Machinery. 01572_ Structural Scanner destroyed. 01572_ Critical hit (Meltdown: +290). 01590_ ECM Suite destroyed. 01592_ Rocket Launcher destroyed. 01592_ Temporary Utility slot lost. 01599_ Ion Engine destroyed. Map ----- +----------------------------------------------------+ | ??????### ###???????????????????????????? | | ??????## ### ###??????????????????????????? | | ??????## ### ####?????????????????????????? | | ???? #####???????????????????????? | | ??? ## ####???????????????????????? | | ?? # #### ##???????????????????????? | | ? ### ##### ###???????????????????????? | | ? ### ## ??### ###???????????????????????? | | ?#### ??## ###????????????????????????? | | ????? ## ?## ####????????????????????????? | | ????? ### ?### ###?????????????????????????? | | ????? ?####?### #######?????????????????????? | | ?????? ?????### #######?????????????????????? | | ???????? ??????### ## ##?????????????????????? | | ???????????????## ###????????????????????? | | ???????????????#### # ###????????????????????? | | ????????????? ##### #### ##????????????????????? | | ????????????####### ## ##????????????????????? | | ????????????### ## ## #######???????????????? | | ????????????## ########???????????????? | | ????????????## ### ##???????????????? | | ????????????### ##; ##???????????????? | | ????????????#### ## ##???????????????? | | ????????????? #### ##???????????????? | | ?????????????? ### ##???????????????? | | ???????????????? ##### @ ###??????????????? | | ?????????????????##### ##??????????????? | | ????????????????????## ## ###?????????????? | | ????????????????????# ## ##?????????????? | | ????????????????????# R #??? ##?????????????? | | ????????????????????## ##???????????????????? | | ????????????????????## #????????????????????? | | ????????????????????## ????????????????????? | | ???????????????????? "" ????????????????????? | | ????????????????????? """" R#???????????????????? | | ???????????????????? "" #???????????????????? | | ???????????????????? ? ???????????????????? | | ??????????????????? ??? ???????????????????? | | ??????????????????? ##??? ???????????????????? | | ???????????????????? ###???? ???????????????????? | | ?????????????????????????????????????????????????? | | ?????????????????????????????????????????????????? | | ?????????????????????????????????????????????????? | | ?????????????????????????????????????????????????? | | ?????????????????????????????????????????????????? | | ?????????????????????????????????????????????????? | | ?????????????????????????????????????????????????? | | ?????????????????????????????????????????????????? | | ?????????????????????????????????????????????????? | | ?????????????????????????????????????????????????? | +----------------------------------------------------+ Best States ------------- Heat Dissipation 39 Energy Generation 10 Energy Capacity 250 Matter Stores 300 Matter Capacity 300 Sight Range 16 Terrain Scan Density 10 ECM Strength 1 Evasion (%) 55 Recoil Reduction 2 Item Schematics ----------------- None Robot Schematics ------------------ None Fabricated ------------ Nothing Alien Tech Used ----------------- None Achievements -------------- None Challenges ------------ None Game ------ Seed CompactProjectionFrame Manual? 0 Play Time 00:18:52 Cumulative 231.6 hours Start 2025.04.30 @ 18:34:53 End 2025.04.30 @ 19:11:05 Sessions 1 Manual Loads 0 Difficulty Rogue Special Mode None Game No. 339 Rogue 339 Adventurer 0 Explorer 0 Win Type - Total 1 Types 1/0/0/0/0/0/0/0/0 Lore% 37 Gallery% 64 Achievement% 43 Wizard Run 0 Options --------- Layout 1 ASCII 0 Keyboard 0 Movement Mouse Keybinds 0 Fullscreen 2 Font 24/Smallcaps Map View 50x35 Zoom Use 0% Tactical HUD 1 Map Filters NONE Filters NONE Steam 1 RUN: 5967e8ac-dead-4825-bf2e-4e89cdb94199